{"text_format":"1","workbook":"xlsx","n_sheets":1,"sheets":["Tabelle1"],"not_rendered":{"charts":0,"images":0,"macros":1,"external_links":0,"defined_names":0,"comments":0,"pivot_tables":0},"unopened":[],"bounds":{"document_bytes":16777216,"sheet_cells":100000,"rows_first":2000,"rows_last":500,"rows_between":2000,"halvings":0,"cell_chars":16384,"cell_head_chars":4096},"cells_cut":0,"cells_raw":0,"read":"whole","date_system":"1900"}

{"sheet":"Tabelle1","index":0,"n_rows":12,"n_cols":17,"rows_kept":12,"cut":false,"hidden":false,"merged":[]}
[]
[]
["Original","Name: Michel Louis Vallet. Date of Birth: 06/11/1914. Place of Birth: Savoie. Service: British Army. Rank: Private. Regiment/Unit/Squadron: [unspecified]. Service Number: [unspecified]. Date of Capture: [unspecified]. Theatre of Capture: [unspecified]. Camp Name/Number: Stalag IVA Hohnstein. PoW number: 23100. Date of Death: [unspecified]. Number of Photographs: 0. Number of Fingerprints: 0. Number of X-rays: 0. Number of Cards: 1."]
[]
[null,1,2,3,4,5,6,7,8,9,10,11,12,13,14,15,16]
["A",{"$f":"TxtSplit($B$3,\".\",B5)","v":"Name: Michel Louis Vallet"},{"$f":"TxtSplit($B$3,\".\",C5)","v":" Date of Birth: 06/11/1914"},{"$f":"TxtSplit($B$3,\".\",D5)","v":" Place of Birth: Savoie"},{"$f":"TxtSplit($B$3,\".\",E5)","v":" Service: British Army"},{"$f":"TxtSplit($B$3,\".\",F5)","v":" Rank: Private"},{"$f":"TxtSplit($B$3,\".\",G5)","v":" Regiment/Unit/Squadron: [unspecified]"},{"$f":"TxtSplit($B$3,\".\",H5)","v":" Service Number: [unspecified]"},{"$f":"TxtSplit($B$3,\".\",I5)","v":" Date of Capture: [unspecified]"},{"$f":"TxtSplit($B$3,\".\",J5)","v":" Theatre of Capture: [unspecified]"},{"$f":"TxtSplit($B$3,\".\",K5)","v":" Camp Name/Number: Stalag IVA Hohnstein"},{"$f":"TxtSplit($B$3,\".\",L5)","v":" PoW number: 23100"},{"$f":"TxtSplit($B$3,\".\",M5)","v":" Date of Death: [unspecified]"},{"$f":"TxtSplit($B$3,\".\",N5)","v":" Number of Photographs: 0"},{"$f":"TxtSplit($B$3,\".\",O5)","v":" Number of Fingerprints: 0"},{"$f":"TxtSplit($B$3,\".\",P5)","v":" Number of X-rays: 0"},{"$f":"TxtSplit($B$3,\".\",Q5)","v":" Number of Cards: 1"}]
[]
[null,1,1,1,1,1,1,1,1,1,1,1,1,1,1,1,1]
["B1",{"$f":"TxtSplit(B6,\":\",B8)","v":"Name"},{"$f":"TxtSplit(C6,\":\",C8)","v":" Date of Birth"},{"$f":"TxtSplit(D6,\":\",D8)","v":" Place of Birth"},{"$f":"TxtSplit(E6,\":\",E8)","v":" Service"},{"$f":"TxtSplit(F6,\":\",F8)","v":" Rank"},{"$f":"TxtSplit(G6,\":\",G8)","v":" Regiment/Unit/Squadron"},{"$f":"TxtSplit(H6,\":\",H8)","v":" Service Number"},{"$f":"TxtSplit(I6,\":\",I8)","v":" Date of Capture"},{"$f":"TxtSplit(J6,\":\",J8)","v":" Theatre of Capture"},{"$f":"TxtSplit(K6,\":\",K8)","v":" Camp Name/Number"},{"$f":"TxtSplit(L6,\":\",L8)","v":" PoW number"},{"$f":"TxtSplit(M6,\":\",M8)","v":" Date of Death"},{"$f":"TxtSplit(N6,\":\",N8)","v":" Number of Photographs"},{"$f":"TxtSplit(O6,\":\",O8)","v":" Number of Fingerprints"},{"$f":"TxtSplit(P6,\":\",P8)","v":" Number of X-rays"},{"$f":"TxtSplit(Q6,\":\",Q8)","v":" Number of Cards"}]
[]
[null,2,2,2,2,2,2,2,2,2,2,2,2,2,2,2,2]
["B2",{"$f":"TxtSplit(B6,\":\",B11)","v":" Michel Louis Vallet"},{"$f":"TxtSplit(C6,\":\",C11)","v":" 06/11/1914"},{"$f":"TxtSplit(D6,\":\",D11)","v":" Savoie"},{"$f":"TxtSplit(E6,\":\",E11)","v":" British Army"},{"$f":"TxtSplit(F6,\":\",F11)","v":" Private"},{"$f":"TxtSplit(G6,\":\",G11)","v":" [unspecified]"},{"$f":"TxtSplit(H6,\":\",H11)","v":" [unspecified]"},{"$f":"TxtSplit(I6,\":\",I11)","v":" [unspecified]"},{"$f":"TxtSplit(J6,\":\",J11)","v":" [unspecified]"},{"$f":"TxtSplit(K6,\":\",K11)","v":" Stalag IVA Hohnstein"},{"$f":"TxtSplit(L6,\":\",L11)","v":" 23100"},{"$f":"TxtSplit(M6,\":\",M11)","v":" [unspecified]"},{"$f":"TxtSplit(N6,\":\",N11)","v":" 0"},{"$f":"TxtSplit(O6,\":\",O11)","v":" 0"},{"$f":"TxtSplit(P6,\":\",P11)","v":" 0"},{"$f":"TxtSplit(Q6,\":\",Q11)","v":" 1"}]